bitfinex/quotes_SOLUSD_20220129
["timestamp","ask_amount","ask_price","bid_price","bid_amount"]
[1643479705340,0.25,94.328,94.244,0.25]
[1643479712667,24.1582,94.328,94.244,0.25]
[1643479713067,6.0,94.318,94.244,0.25]
[1643479713268,0.25,94.317,94.244,0.25]
[1643479713668,6.25,94.317,94.244,0.25]
[1643479719974,6.25,94.317,94.244,2.55891813]
[1643479720374,6.25,94.317,94.254,6.0]
[1643479720577,6.25,94.317,94.262,6.0]
[1643479720776,6.25,94.317,94.263,0.25]
[1643479721975,6.25,94.317,94.253,0.25]
[1643479724282,24.873,94.316,94.245,0.25]
[1643479724681,6.0,94.306,94.254,6.0]
[1643479724880,0.25,94.305,94.255,0.25]
[1643479725281,0.25,94.305,94.255,33.44549143]
[1643479725480,0.25,94.305,94.255,0.25]
[1643479726089,0.25,94.305,94.245,1.71833308]
[1643479726281,0.25,94.305,94.245,0.25]
[1643479726480,0.25,94.305,94.245,35.11008544]
[1643479727082,0.25,94.305,94.246,1.46833308]
[1643479727281,0.25,94.305,94.247,0.25]
[1643479727482,0.25,94.305,94.256,6.0]
[1643479727882,0.25,94.305,94.257,0.25]
[1643479728081,0.25,94.305,94.248,1.46833308]
[1643479728481,0.40320822,94.304,94.24,1.46833308]
[1643479728682,0.40320822,94.304,94.231,1.46833308]
[1643479728883,6.0,94.295,94.231,1.46833308]
[1643479729086,6.0,94.295,94.232,38.26593973]
[1643479729284,0.25,94.294,94.232,38.26593973]
[1643479729485,0.25,94.294,94.232,39.73427281]
[1643479729885,0.25,94.294,94.232,38.26593973]
[1643479730284,0.25,94.294,94.233,0.25]
[1643479730486,0.25,94.294,94.234,1.46833308]
[1643479730687,6.0,94.295,94.234,1.46833308]
[1643479730888,6.0,94.295,94.235,0.25]
[1643479732285,0.25,94.294,94.233,1.71833308]
[1643479733090,0.25,94.294,94.233,0.25]
[1643479733287,0.25,94.294,94.233,1.46833308]
[1643479733491,0.25,94.294,94.232,38.26593973]
[1643479733690,0.65217726,94.294,94.233,0.25]
[1643479734688,24.6162,94.293,94.233,0.25]
[1643479734890,0.25,94.292,94.23,0.25]
[1643479735092,6.0,94.283,94.229,1.46833308]
[1643479735293,6.0,94.283,94.222,1.46833308]
[1643479735294,0.25,94.282,94.222,1.46833308]
[1643479735494,0.25,94.282,94.214,1.46833308]
[1643479735790,23.1889,94.282,94.212,1.46833308]
[1643479735993,23.1889,94.282,94.203,1.46833308]
[1643479736193,6.0,94.272,94.203,1.46833308]
[1643479736390,6.0,94.272,94.192,1.46833308]
[1643479736591,15.33,94.26,94.186,1.46833308]
[1643479736788,0.25,94.259,94.186,1.46833308]
[1643479736991,6.0,94.25,94.183,1.46833308]
[1643479737190,6.0,94.25,94.182,1.46833308]
[1643479737391,6.0,94.25,94.164,3.90505963]
[1643479737392,6.25,94.249,94.181,1.46833308]
[1643479737890,23.5525,94.248,94.181,1.46833308]
[1643479738090,6.0,94.238,94.181,1.46833308]
[1643479738290,0.25,94.237,94.181,1.46833308]
[1643479738492,6.25,94.237,94.18,1.46833308]
[1643479738693,6.25,94.237,94.165,1.46833308]
[1643479738890,6.25,94.237,94.166,0.25]
[1643479739091,6.25,94.237,94.164,0.25]
[1643479739594,6.25,94.237,94.165,2.30891813]
[1643479739796,0.25,94.237,94.167,1.46833308]
[1643479739991,0.25,94.237,94.166,1.71833308]
[1643479740196,6.0,94.237,94.168,2.30891813]
[1643479740391,6.0,94.237,94.166,1.71833308]
[1643479740392,0.25,94.236,94.169,0.25]
[1643479740593,0.25,94.236,94.167,1.46833308]
[1643479740792,0.25,94.236,94.168,0.25]
[1643479741393,0.25,94.236,94.173,6.0]
[1643479741617,0.25,94.246,94.173,6.0]
[1643479741891,0.25,94.246,94.174,0.25]
[1643479742391,6.0,94.237,94.174,0.25]
[1643479742793,0.25,94.236,94.174,0.25]
[1643479744993,6.0,94.237,94.174,0.25]
[1643479745595,6.0,94.237,94.174,6.25]
[1643479745994,6.0,94.237,94.175,6.0]
[1643479746202,6.0,94.237,94.174,6.25]
[1643479746595,6.0,94.237,94.175,6.0]
[1643479746795,6.0,94.237,94.176,0.25]
[1643479747398,6.0,94.237,94.176,6.25]
[1643479748098,0.39712236,94.245,94.186,6.0]
[1643479748298,0.39712236,94.245,94.187,0.25]
[1643479748598,0.25,94.246,94.187,0.25]
[1643479749600,0.25,94.246,94.178,6.25]
[1643479750205,24.01699334,94.247,94.178,2.55891813]
[1643479750402,0.25,94.246,94.188,6.0]
[1643479750802,0.25,94.246,94.189,0.25]
[1643479751003,6.0,94.237,94.189,0.25]
[1643479751607,0.25,94.246,94.189,0.25]
[1643479751802,0.25,94.246,94.154,2.30891813]
[1643479751803,0.25,94.246,94.18,0.25]
[1643479752203,0.25,94.246,94.179,6.0]
[1643479752204,0.25,94.246,94.179,6.25]
[1643479752806,0.25,94.246,94.179,0.25]
[1643479753006,0.25,94.246,94.189,6.0]
[1643479753407,0.25,94.246,94.19,0.25]
[1643479753607,0.39712236,94.245,94.19,0.25]
[1643479754412,0.39712236,94.245,94.185,0.25]
[1643479754611,0.39712236,94.245,94.186,6.0]
[1643479754810,0.39712236,94.245,94.187,0.25]
[1643479755612,0.39712236,94.245,94.189,6.0]
[1643479755814,0.39712236,94.245,94.19,0.25]
[1643479756012,0.3621831,94.245,94.19,0.25]
[1643479756924,0.3621831,94.245,94.186,6.0]
[1643479757324,0.3621831,94.245,94.174,6.0]
[1643479757532,0.3621831,94.245,94.183,6.0]
[1643479758332,0.3621831,94.245,94.184,0.25]
[1643479758732,0.3621831,94.245,94.182,6.0]
[1643479758935,0.3621831,94.245,94.183,0.25]
[1643479759134,0.3621831,94.245,94.186,6.0]
[1643479759338,0.3621831,94.245,94.187,0.25]
[1643479760436,0.3621831,94.245,94.18,1.71833308]
[1643479760634,0.3621831,94.245,94.18,0.25]
[1643479760835,0.3621831,94.245,94.181,2.30891813]
[1643479761236,0.3621831,94.245,94.182,0.25]
[1643479761635,0.3621831,94.245,94.185,6.0]
[1643479761937,0.3621831,94.245,94.186,0.25]
[1643479762135,0.3621831,94.245,94.185,6.0]
[1643479762334,0.3621831,94.245,94.186,0.25]
[1643479762543,0.3621831,94.245,94.189,6.0]
[1643479762943,0.3621831,94.245,94.19,0.25]
[1643479764743,0.3621831,94.245,94.188,1.46833308]
[1643479764946,0.3621831,94.245,94.187,0.25]
[1643479765142,0.3621831,94.245,94.185,1.46833308]
[1643479765347,0.3621831,94.245,94.186,0.25]
[1643479765944,0.3621831,94.245,94.187,1.46833308]
[1643479766142,0.3621831,94.245,94.186,0.25]
[1643479766143,0.3621831,94.245,94.189,1.46833308]
[1643479766343,0.3621831,94.245,94.19,0.25]
[1643479768747,0.3621831,94.245,94.193,1.46833308]
[1643479768947,0.3621831,94.245,94.194,35.17463957]
[1643479769349,0.3621831,94.245,94.195,1.46833308]
[1643479769752,0.3621831,94.245,94.205,6.0]
[1643479770252,0.3621831,94.245,94.206,6.25]
[1643479770651,0.3621831,94.245,94.208,6.0]
[1643479770851,0.3621831,94.245,94.209,0.25]
[1643479771052,0.3621831,94.245,94.206,0.25]
[1643479772255,0.3621831,94.245,94.2,0.25]
[1643479772453,0.3621831,94.245,94.209,6.0]
[1643479772651,0.3621831,94.245,94.206,6.0]
[1643479772852,0.3621831,94.245,94.213,6.0]
[1643479773051,0.3621831,94.245,94.214,6.0]
[1643479773253,0.3621831,94.245,94.215,0.25]
[1643479773455,23.53181523,94.268,94.215,0.25]
[1643479774157,23.53181523,94.268,94.204,1.46833308]
[1643479774354,23.53181523,94.268,94.205,1.46833308]
[1643479774355,6.0,94.258,94.205,1.46833308]
[1643479774555,6.0,94.258,94.183,1.46833308]
[1643479774760,27.85479142,94.257,94.179,1.46833308]
[1643479774954,33.85479142,94.257,94.177,1.46833308]
[1643479775380,6.0,94.255,94.176,1.46833308]
[1643479775555,6.0,94.247,94.177,36.63598353]
[1643479775757,0.25,94.246,94.177,36.88598353]
[1643479776456,24.2541,94.246,94.177,36.88598353]
[1643479776857,6.0,94.236,94.177,36.88598353]
[1643479777263,0.25,94.235,94.177,36.88598353]
[1643479778060,0.25,94.235,94.177,0.25]
[1643479778259,23.9676,94.235,94.176,0.25]
[1643479778460,24.35786689,94.235,94.176,0.25]
[1643479778659,6.0,94.225,94.173,0.25]
[1643479778859,0.25,94.224,94.173,0.25]
[1643479779260,0.25,94.224,94.172,0.25]
[1643479779864,0.25,94.224,94.172,1.71833308]
[1643479780466,0.25,94.224,94.173,1.46833308]
[1643479780861,0.25,94.234,94.174,0.25]
[1643479781463,6.0,94.225,94.174,0.25]
[1643479781863,6.0,94.225,94.172,1.46833308]
[1643479781864,0.25,94.224,94.173,0.25]
[1643479782364,0.25,94.224,94.172,0.25]
[1643479783394,0.3890279,94.223,94.172,0.25]
[1643479783693,0.3890279,94.223,94.164,34.83915396]
[1643479783694,0.3890279,94.223,94.18,6.0]
[1643479783895,0.3890279,94.223,94.181,0.25]
[1643479784496,0.3890279,94.223,94.175,1.46833308]
[1643479784696,0.3890279,94.223,94.176,0.25]
[1643479785801,0.3890279,94.223,94.167,1.46833308]
[1643479785997,6.0,94.214,94.154,1.46833308]
[1643479786196,6.0,94.214,94.152,1.46833308]
[1643479786401,0.25,94.213,94.152,1.46833308]
[1643479786599,0.25,94.213,94.154,1.46833308]
[1643479786798,23.0653,94.213,94.154,1.46833308]
[1643479786998,6.0,94.203,94.155,0.25]
[1643479787401,0.25,94.202,94.155,0.25]
[1643479788203,0.25,94.202,94.154,0.25]
[1643479788400,0.25,94.202,94.148,1.46833308]
[1643479788401,0.25,94.202,94.149,0.25]
[1643479788802,0.25,94.202,94.148,1.71833308]
[1643479789003,0.25,94.202,94.148,1.46833308]
[1643479789201,0.25,94.202,94.143,1.46833308]
[1643479789406,0.25,94.202,94.126,1.2870433]
[1643479789407,0.25,94.202,94.131,1.46833308]
[1643479789603,6.0,94.197,94.126,1.2870433]
[1643479789803,0.25,94.196,94.126,2.75537638]
[1643479790010,6.0,94.192,94.126,2.75537638]
[1643479790207,6.0,94.192,94.127,1.46833308]
[1643479790405,0.25,94.191,94.126,2.75537638]
[1643479791412,0.25,94.191,94.126,1.2870433]
[1643479793412,6.0,94.192,94.143,0.25]
[1643479793614,0.57842854,94.19,94.143,0.25]
[1643479794211,0.57842854,94.19,94.126,2.75537638]
[1643479794412,0.57842854,94.19,94.126,1.2870433]
[1643479801121,0.57842854,94.19,94.143,0.25]
[1643479803047,1.43901529,94.255,94.152,6.0]
[1643479803246,0.32123904,94.432,94.152,6.0]
[1643479803247,1.43901529,94.263,94.153,38.54278727]
[1643479803545,46.7616,94.265,94.163,6.0]
[1643479803747,1.43901529,94.278,94.182,0.31118068]
[1643479804145,46.7616,94.312,94.191,37.20846484]
[1643479804146,1.43901529,94.306,94.191,37.20846484]
[1643479804350,46.7616,94.312,94.212,0.30690069]
[1643479804646,15.897,94.347,94.212,0.30690069]
[1643479804848,2.88034478,94.359,94.214,105.8]
[1643479805048,18.21034478,94.36,94.224,6.0]
[1643479805249,6.0,94.303,94.225,0.25]
[1643479805647,6.0,94.344,94.231,41.66928073]
[1643479805846,24.6445,94.343,94.232,0.25]
[1643479806048,6.0,94.333,94.241,6.0]
[1643479806246,6.0,94.333,94.242,0.25]
[1643479806547,6.0,94.333,94.242,6.25]
[1643479807047,6.25,94.332,94.243,6.0]
[1643479807247,6.25,94.332,94.253,43.8574046]
[1643479807648,6.25,94.332,94.254,0.25]
[1643479809651,6.0,94.331,94.254,0.25]
[1643479809851,0.25,94.33,94.254,0.25]
[1643479813262,0.25,94.33,94.243,6.0]
[1643479813263,0.25,94.33,94.216,47.1636]
[1643479813462,43.03939142,94.33,94.2,15.33]
[1643479813661,105.8,94.329,94.195,48.3504]
[1643479813859,6.0,94.321,94.205,6.0]
[1643479814059,105.8,94.318,94.206,46.3189799]
[1643479814260,6.0,94.308,94.206,46.3189799]
[1643479814460,23.3864,94.307,94.206,46.3189799]
[1643479814661,105.8,94.306,94.207,0.25]
[1643479814866,6.0,94.3,94.207,0.25]
[1643479815067,6.0,94.296,94.207,0.25]
[1643479815261,0.25,94.295,94.207,0.25]
[1643479815462,6.0,94.294,94.207,0.25]
[1643479815664,105.8,94.293,94.207,0.25]
[1643479815868,129.1813,94.293,94.193,6.0]
[1643479816062,6.0,94.283,94.193,6.0]
[1643479816266,106.05,94.282,94.194,0.25]
[1643479816465,6.0,94.272,94.194,0.25]
[1643479816664,6.0,94.272,94.194,33.0053878]
[1643479816864,0.25,94.271,94.194,32.7553878]
[1643479817867,6.0,94.283,94.194,32.7553878]
[1643479817868,0.25,94.282,94.194,32.7553878]
[1643479818265,0.25,94.282,94.195,0.25]
[1643479820975,6.25,94.282,94.195,0.25]
[1643479823370,22.589,94.281,94.181,0.25]
[1643479823578,6.0,94.271,94.181,0.25]
[1643479823771,0.25,94.27,94.181,0.25]
[1643479823972,24.5299,94.27,94.181,0.25]
[1643479824171,24.5299,94.27,94.181,42.18729422]
[1643479824371,6.0,94.26,94.181,42.18729422]
[1643479824773,0.25,94.259,94.181,42.18729422]
[1643479824971,6.25,94.259,94.181,42.18729422]
[1643479825775,6.0,94.259,94.181,42.18729422]
[1643479827178,0.25,94.258,94.181,42.18729422]
[1643479828000,0.25,94.258,94.166,17.27799242]
[1643479828204,0.25,94.258,94.181,0.25]
[1643479828400,0.25,94.258,94.157,24.6349]
[1643479829001,0.25,94.258,94.181,36.96450303]
[1643479829504,6.25,94.258,94.181,36.96450303]
[1643479829704,105.8,94.257,94.181,36.96450303]
[1643479829902,22.9994,94.256,94.181,36.96450303]
[1643479830105,6.0,94.246,94.181,36.96450303]
[1643479830307,0.25,94.245,94.181,36.96450303]
[1643479830502,6.25,94.245,94.181,36.96450303]
[1643479831705,105.8,94.244,94.181,36.96450303]
[1643479831907,0.25,94.243,94.181,36.96450303]
[1643479832109,6.0,94.234,94.181,36.96450303]
[1643479832313,0.25,94.233,94.181,36.96450303]
[1643479834813,6.0,94.246,94.191,6.0]
[1643479835212,0.25,94.245,94.192,0.25]
[1643479835613,0.25,94.245,94.181,36.96450303]
[1643479835812,0.25,94.245,94.182,0.25]
[1643479836012,0.25,94.245,94.181,36.96450303]
[1643479837011,6.0,94.241,94.181,36.96450303]
[1643479837414,0.25,94.24,94.181,36.96450303]
[1643479838015,0.25,94.24,94.129,23.1504]
[1643479838214,129.3448,94.24,94.13,37.928]
[1643479838513,6.0,94.23,94.13,37.928]
[1643479838715,23.2948,94.229,94.13,37.928]
[1643479838920,23.5448,94.229,94.13,37.928]
[1643479839114,6.0,94.219,94.169,38.17976613]
[1643479839414,0.25,94.218,94.13,37.928]
[1643479840016,0.25,94.218,94.13,22.598]
[1643479840414,0.25,94.218,94.164,40.38608959]
[1643479842217,6.0,94.219,94.164,40.38608959]
[1643479842617,6.0,94.219,94.13,22.598]
[1643479842817,6.0,94.219,94.13,45.8738]
[1643479843716,0.25,94.218,94.174,42.50908127]
[1643479844918,0.25,94.218,94.13,45.8738]
[1643479845919,6.0,94.219,94.181,45.31072808]
[1643479846120,23.5861,94.254,94.181,45.56072808]
[1643479846320,24.0488,94.278,94.181,45.56072808]
[1643479846525,6.0,94.268,94.182,2.30891813]
[1643479846920,6.0,94.268,94.183,0.25]
[1643479847120,6.0,94.267,94.183,0.25]
[1643479847321,6.0,94.267,94.192,6.0]
[1643479847620,6.0,94.267,94.181,45.31072808]
[1643479847621,0.25,94.266,94.181,45.31072808]
[1643479847825,130.0335,94.266,94.181,45.31072808]
[1643479848021,6.0,94.256,94.181,45.31072808]
[1643479848221,129.7835,94.255,94.181,45.31072808]
[1643479848423,24.2335,94.255,94.181,45.31072808]
[1643479848622,6.0,94.245,94.182,0.25]
[1643479848825,0.25,94.244,94.182,0.25]
[1643479849026,6.0,94.245,94.182,0.25]
[1643479849223,6.0,94.245,94.181,45.31072808]
[1643479849624,6.0,94.245,94.182,0.25]
[1643479850625,6.0,94.26,94.182,0.25]
[1643479851029,6.0,94.259,94.182,0.25]
[1643479851532,6.0,94.259,94.191,6.0]
[1643479851827,6.0,94.259,94.192,0.25]
[1643479852027,6.0,94.259,94.191,6.0]
[1643479852227,6.0,94.259,94.182,0.25]
[1643479852431,6.0,94.259,94.192,0.25]
[1643479852626,0.25,94.258,94.182,0.25]
[1643479853127,23.2122,94.258,94.182,0.25]
[1643479853529,6.0,94.248,94.182,0.25]
[1643479854153,23.2122,94.258,94.191,6.0]
[1643479854352,23.2122,94.258,94.192,0.25]
[1643479854553,0.25,94.258,94.192,0.25]
[1643479854953,6.0,94.268,94.192,0.25]
[1643479855153,6.0,94.267,94.192,6.25]
[1643479855461,6.25,94.267,94.192,6.25]
[1643479855854,23.8144,94.266,94.192,6.25]
[1643479856054,6.0,94.256,94.192,6.25]
[1643479856254,0.25,94.255,94.192,6.25]
[1643479857355,0.25,94.255,94.193,0.25]
[1643479858155,23.2596,94.255,94.193,0.25]
[1643479858555,6.0,94.245,94.192,0.25]
[1643479858756,0.25,94.244,94.192,0.25]
[1643479858958,0.25,94.244,94.182,0.25]
[1643479859558,0.25,94.244,94.191,6.0]
[1643479859757,0.25,94.244,94.192,0.25]
[1643479862658,0.25,94.244,94.191,6.0]
[1643479862860,0.25,94.244,94.192,0.25]
[1643479863659,6.0,94.245,94.201,6.0]
[1643479863864,0.25,94.244,94.202,40.22633238]
[1643479864062,6.0,94.245,94.202,40.22633238]
[1643479864562,0.25,94.244,94.202,40.22633238]
[1643479864960,23.0096,94.255,94.202,40.22633238]
[1643479865162,0.25,94.244,94.202,40.22633238]
[1643479865763,15.33,94.28,94.202,40.22633238]
[1643479865960,15.7547,94.293,94.203,2.30891813]
[1643479866160,15.7547,94.293,94.212,6.0]
[1643479866361,15.7547,94.293,94.213,6.25]
[1643479866561,6.0,94.283,94.223,6.0]
[1643479866763,6.0,94.283,94.224,46.5380164]
[1643479866965,6.0,94.283,94.223,6.0]
[1643479867161,6.0,94.283,94.214,6.0]
[1643479867362,24.9949,94.282,94.215,0.25]
[1643479867962,6.0,94.272,94.215,0.25]
[1643479868462,6.0,94.272,94.214,6.0]
[1643479868862,6.0,94.272,94.215,0.25]
[1643479869863,6.0,94.272,94.216,2.30891813]
[1643479870063,6.0,94.291,94.226,6.0]
[1643479870262,0.25,94.29,94.227,33.00579825]
[1643479870664,0.25,94.29,94.237,6.0]
[1643479870864,0.25,94.29,94.238,0.25]
[1643479871464,0.25,94.298,94.238,0.25]
[1643479871664,0.25,94.298,94.238,6.25]
[1643479873066,0.25,94.298,94.238,0.25]
[1643479873266,0.25,94.298,94.228,22.5675]
[1643479873267,0.25,94.298,94.229,0.25]
[1643479875067,0.25,94.298,94.238,6.0]
[1643479875268,0.25,94.298,94.239,0.25]
[1643479877873,0.25,94.298,94.238,6.0]
[1643479878874,25.0168,94.298,94.238,6.0]
[1643479879073,6.0,94.288,94.238,6.0]
[1643479879272,0.25,94.287,94.239,0.25]
[1643479880474,0.25,94.287,94.216,24.831]
[1643479880675,24.4552,94.287,94.19,15.33]
[1643479880874,24.4552,94.287,94.207,0.25]
[1643479881079,6.0,94.277,94.207,0.25]
[1643479881276,0.25,94.276,94.207,0.25]
[1643479881475,24.3063,94.276,94.207,0.25]
[1643479881875,6.0,94.266,94.199,0.25]
[1643479882276,0.25,94.265,94.199,0.25]
[1643479884676,0.25,94.265,94.208,6.0]
[1643479884876,6.0,94.266,94.209,0.25]
[1643479885076,6.0,94.266,94.209,6.25]
[1643479885280,0.25,94.265,94.209,6.25]
[1643479885876,0.25,94.265,94.209,0.25]
[1643479886279,0.25,94.275,94.2,0.25]
[1643479886680,6.0,94.266,94.2,0.25]
[1643479886879,0.25,94.265,94.2,0.25]
[1643479887917,6.0,94.266,94.201,2.30891813]
[1643479888084,24.0563,94.276,94.211,6.0]
[1643479888281,0.25,94.275,94.212,0.25]
[1643479888481,24.2216,94.296,94.212,24.303]
[1643479888682,6.0,94.287,94.213,33.81306918]
[1643479888881,6.0,94.286,94.222,6.0]
[1643479889083,24.9577,94.285,94.223,6.0]
[1643479889284,24.9577,94.285,94.224,0.25]
[1643479889682,24.9577,94.285,94.223,6.0]
[1643479889883,24.9577,94.285,94.224,0.25]
[1643479890782,24.9577,94.285,94.213,33.81306918]
[1643479890783,6.0,94.275,94.214,0.25]
[1643479891184,0.25,94.274,94.223,6.0]
[1643479891386,6.0,94.275,94.224,0.25]
[1643479892988,0.25,94.274,94.233,6.0]
[1643479893186,0.25,94.274,94.224,0.25]
[1643479893884,6.0,94.275,94.224,0.25]
[1643479894085,6.0,94.287,94.225,2.3093691]
[1643479894283,6.0,94.287,94.226,0.25]
[1643479894485,6.0,94.287,94.236,37.00481697]
[1643479894684,6.0,94.308,94.236,37.00481697]
[1643479894890,0.25,94.307,94.246,6.0]
[1643479895415,0.25,94.307,94.247,0.25]
[1643479896185,23.1362,94.307,94.247,0.25]
[1643479896386,23.1362,94.307,94.237,0.25]
[1643479896592,6.0,94.297,94.236,37.00481697]
[1643479897187,0.25,94.296,94.236,37.00481697]
[1643479898187,6.0,94.297,94.236,37.00481697]
[1643479898390,0.25,94.296,94.236,37.00481697]
[1643479899787,23.4817,94.296,94.236,37.00481697]
[1643479900390,23.4817,94.296,94.237,0.25]
[1643479901091,23.4817,94.296,94.236,37.00481697]
[1643479901293,6.0,94.286,94.236,37.00481697]
[1643479901697,0.25,94.285,94.236,37.00481697]
[1643479902692,0.25,94.285,94.215,23.853]
[1643479902924,0.25,94.285,94.216,0.25]
[1643479903093,0.25,94.285,94.215,23.853]
[1643479903497,0.25,94.285,94.204,2.3093691]
[1643479903695,24.6897,94.285,94.204,2.3093691]
[1643479903895,24.6897,94.285,94.214,6.0]
[1643479904095,6.0,94.275,94.215,6.0]
[1643479904296,0.25,94.274,94.216,0.25]
[1643479904696,23.4255,94.274,94.216,0.25]
[1643479905095,6.0,94.264,94.216,0.25]
[1643479905295,23.4255,94.274,94.216,0.25]
[1643479907100,23.4255,94.274,94.226,35.61899896]
[1643479907299,23.4255,94.274,94.227,0.25]
[1643479907700,6.0,94.264,94.227,0.25]
[1643479908306,0.25,94.263,94.227,0.25]
[1643479908709,0.25,94.263,94.226,35.61899896]
[1643479909307,6.0,94.264,94.227,0.25]
[1643479909511,6.0,94.285,94.227,0.25]
[1643479910634,0.25,94.284,94.227,0.25]
[1643479911037,25.0929,94.284,94.227,0.25]
[1643479911536,6.0,94.274,94.227,0.25]
[1643479915248,0.25,94.273,94.227,0.25]
[1643479918850,0.25,94.273,94.204,2.3093691]
[1643479919051,24.7001,94.273,94.204,2.3093691]
[1643479919252,24.7001,94.273,94.205,0.25]
[1643479919453,6.0,94.263,94.205,0.25]
[1643479920056,6.0,94.263,94.211,6.0]
[1643479920254,24.9169,94.294,94.216,111.8]
[1643479920459,24.9169,94.294,94.217,45.02560792]
[1643479920662,24.9169,94.294,94.217,45.27560792]
[1643479920865,24.9169,94.294,94.227,6.0]
[1643479921260,24.9169,94.294,94.228,0.25]
[1643479921694,0.25,94.293,94.228,0.25]
[1643479921884,0.25,94.293,94.228,6.25]
[1643479923887,0.25,94.293,94.228,0.25]
[1643479924087,6.0,94.284,94.228,0.25]
[1643479924289,25.0469,94.283,94.218,0.25]
[1643479924888,25.0469,94.283,94.217,45.02560792]
[1643479925086,6.0,94.273,94.217,45.02560792]
[1643479925287,0.25,94.272,94.217,45.02560792]
[1643479926089,24.5743,94.272,94.217,45.02560792]
[1643479926287,24.5743,94.272,94.218,0.25]
[1643479926691,24.5743,94.272,94.227,6.0]
[1643479926893,24.5743,94.272,94.228,0.25]
[1643479927189,24.5743,94.272,94.227,6.0]
[1643479927391,24.5743,94.272,94.228,0.25]
[1643479928789,24.5743,94.272,94.218,0.25]
[1643479929189,24.238,94.295,94.218,0.25]
[1643479929390,24.252,94.294,94.227,6.0]
[1643479929597,24.002,94.294,94.227,6.0]
[1643479929792,24.002,94.294,94.228,0.25]
[1643479930393,24.002,94.294,94.228,6.25]
[1643479930594,24.002,94.294,94.238,6.0]
[1643479930794,0.25,94.293,94.239,0.25]
[1643479930994,0.25,94.293,94.244,6.0]
[1643479931294,0.25,94.293,94.245,0.25]
[1643479932196,24.002,94.294,94.245,0.25]
[1643479933896,0.25,94.293,94.245,0.25]
[1643479934099,24.002,94.294,94.245,0.25]
[1643479934698,1.46094871,94.314,94.245,106.05]
[1643479934896,1.46094871,94.316,94.246,24.3916]
[1643479935097,6.0,94.304,94.257,35.82383304]
[1643479935298,6.0,94.304,94.258,0.25]
[1643479935495,6.0,94.319,94.267,6.0]
[1643479935895,6.0,94.319,94.268,0.25]
[1643479938000,6.0,94.319,94.267,6.0]
[1643479939399,6.0,94.319,94.268,0.25]
[1643479939600,6.0,94.319,94.258,0.25]
[1643479939803,0.25,94.318,94.258,0.25]
[1643479940201,23.7078,94.318,94.258,0.25]
[1643479940600,6.0,94.308,94.259,2.30936633]
[1643479940802,6.0,94.308,94.267,6.0]
[1643479941001,6.0,94.308,94.269,6.0]
[1643479941200,6.0,94.327,94.26,0.25]
[1643479941400,23.3537,94.326,94.26,23.6814]